bitfinex-derivatives/quotes_ETHF0:USTF0_20210406
["timestamp","ask_amount","ask_price","bid_price","bid_amount"]
[1617696310828,7.5253,2088.4,2088.3,5.19195]
[1617696310989,3.7084,2088.4,2088.3,5.19195]
[1617696311589,12.7859,2090.1,2088.3,5.19195]
[1617696311812,12.7859,2090.1,2088.4,60.7297]
[1617696311998,12.7859,2090.1,2088.4,62.7297]
[1617696312683,12.7859,2090.1,2089.8,2.90695]
[1617696312882,2.9556,2090.8,2089.8,5.79335]
[1617696313483,2.9556,2090.8,2090.1,77.3086]
[1617696314384,2.9556,2090.8,2089.8,5.79335]
[1617696314584,32.9556,2090.8,2089.8,2.90695]
[1617696314786,2.90695,2089.9,2089.8,1.24405]
[1617696314990,3.87115,2089.9,2089.8,1.24405]
[1617696315285,2.90695,2089.9,2089.8,1.24405]
[1617696315485,2.90695,2089.9,2089.0,66.9278]
[1617696315687,5.33165,2089.9,2089.0,66.9278]
[1617696316690,2.90695,2089.1,2089.0,66.9278]
[1617696316887,5.85835,2089.1,2088.4,2.90695]
[1617696317136,2.0,2089.0,2087.9,59.7892]
[1617696317324,5.85835,2089.1,2087.9,59.7892]
[1617696317991,30.0,2089.0,2087.9,59.7892]
[1617696318513,2.0,2088.9,2087.9,59.7892]
[1617696318791,2.90695,2088.0,2087.9,59.7892]
[1617696322492,2.90695,2088.0,2087.5,2.90695]
[1617696324695,2.90695,2087.6,2087.5,2.90695]
[1617696325306,2.90695,2087.6,2086.9,5.02335763]
[1617696325796,2.90695,2087.6,2087.0,0.21892087]
[1617696326196,2.90695,2087.6,2086.8,0.21893503]
[1617696326398,2.5446,2087.4,2086.7,5.02360924]
[1617696326767,2.90695,2086.6,2086.5,4.56138252]
[1617696326899,7.58835,2086.6,2086.0,6.1418738]
[1617696327103,5.58835,2086.6,2086.0,6.1418738]
[1617696327362,30.0,2086.5,2086.0,6.1418738]
[1617696327544,30.0,2086.5,2085.2,75.2735]
[1617696327545,30.0,2086.5,2086.1,0.21920011]
[1617696327706,30.0,2086.5,2085.3,6.14282681]
[1617696328108,30.0,2086.5,2085.4,0.21924757]
[1617696328392,2.0,2086.4,2085.4,0.21924757]
[1617696328596,2.0,2086.4,2085.3,0.21930513]
[1617696328796,2.6814,2086.6,2085.6,2.68775]
[1617696329496,2.6814,2086.6,2085.7,0.21928982]
[1617696329938,0.9566,2087.0,2085.9,57.3019]
[1617696330183,30.0,2087.5,2085.9,57.3019]
[1617696330498,78.3247,2088.0,2085.9,57.3019]
[1617696330697,30.9683,2087.6,2086.2,2.90695]
[1617696331398,43.0851,2087.3,2085.9,57.3019]
[1617696331698,14.6442,2087.2,2085.9,57.3019]
[1617696331899,30.0,2087.1,2084.9,6.14121755]
[1617696332098,30.0,2086.9,2084.8,6.14148301]
[1617696332398,2.9658,2087.0,2084.6,6.14182517]
[1617696332399,32.0,2086.7,2084.6,6.14182517]
[1617696332799,32.0,2086.7,2085.0,2.90695]
[1617696334101,2.0,2086.7,2085.0,2.90695]
[1617696334502,30.0,2087.0,2085.0,2.90695]
[1617696334707,2.0,2086.9,2085.7,2.90695]
[1617696335505,2.9669,2086.9,2085.7,2.90695]
[1617696335807,0.9669,2086.9,2085.7,2.90695]
[1617696336003,10.0,2087.1,2085.8,61.4109]
[1617696336404,12.0,2087.1,2085.8,61.4109]
[1617696336904,2.90695,2085.9,2085.8,61.4109]
[1617696337105,2.90695,2085.9,2085.7,2.90695]
[1617696338920,62.1612,2086.4,2085.7,2.90695]
[1617696341009,4.88675,2085.8,2085.7,1.93685]
[1617696341452,4.88675,2085.8,2084.8,5.03139216]
[1617696341911,62.0578,2085.7,2084.7,5.03171255]
[1617696342310,2.0,2085.6,2083.9,5.02205886]
[1617696342587,2.0,2085.6,2083.8,5.02225868]
[1617696342800,80.1265,2084.9,2083.8,5.02225868]
[1617696342910,84.3827,2084.9,2084.3,2.90695]
[1617696343125,84.3827,2084.9,2083.7,5.02563786]
[1617696343919,84.3827,2084.9,2083.6,5.02608403]
[1617696344811,82.3827,2084.9,2083.9,2.90695]
[1617696345011,82.3827,2084.9,2083.6,5.02608403]
[1617696345412,82.3827,2084.9,2083.5,5.02644787]
[1617696345915,82.3827,2084.9,2083.4,5.02671635]
[1617696346913,82.3827,2084.9,2084.1,2.90695]
[1617696347113,80.1265,2084.9,2084.1,2.90695]
[1617696347713,80.1265,2084.9,2083.7,2.2549]
[1617696347913,82.051,2084.9,2083.7,2.2549]
[1617696348622,82.051,2084.9,2083.3,5.02681889]
[1617696348813,82.051,2084.9,2083.2,5.0268751]
[1617696349018,82.051,2084.9,2083.8,2.90695]
[1617696349515,82.051,2084.9,2083.1,5.02705126]
[1617696350117,82.051,2084.9,2083.2,5.0269982]
[1617696350819,82.051,2084.9,2082.2,14.53227805]
[1617696350821,82.051,2084.9,2083.1,5.0271115]
[1617696351017,82.051,2084.9,2083.7,2.90695]
[1617696351320,2.0,2084.8,2083.7,2.90695]
[1617696352038,2.0,2084.8,2083.1,5.0271115]
[1617696352219,2.0,2084.8,2083.0,5.02734017]
[1617696352916,2.0,2084.8,2083.4,2.90695]
[1617696353317,82.051,2084.9,2083.4,2.90695]
[1617696353618,80.1265,2084.9,2083.4,2.90695]
[1617696354917,80.1265,2084.9,2083.8,2.90695]
[1617696357021,2.90695,2083.9,2083.8,2.90695]
[1617696361331,80.1265,2084.9,2083.8,2.90695]
[1617696361532,13.9341,2085.4,2083.8,2.90695]
[1617696361734,62.2705,2086.0,2083.8,2.90695]
[1617696362938,62.2705,2086.0,2085.6,2.90695]
[1617696363139,13.8322,2086.9,2085.6,2.2312]
[1617696363341,54.5072,2086.1,2085.6,2.2312]
[1617696364033,54.5072,2086.1,2084.9,1.8612]
[1617696364939,2.90695,2085.0,2084.9,4.76815]
[1617696365536,2.90695,2085.0,2084.9,2.90695]
[1617696368543,13.9217,2086.0,2084.9,5.46665]
[1617696369136,13.9217,2086.0,2085.3,2.90695]
[1617696370038,54.5072,2086.1,2085.3,2.90695]
[1617696371047,10.0,2087.1,2084.9,2.5597]
[1617696371048,10.0,2087.1,2085.7,2.90695]
[1617696371260,10.0,2087.1,2085.7,5.12425]
[1617696373138,10.0,2087.1,2086.3,2.90695]
[1617696373340,10.0,2087.1,2086.3,5.72005]
[1617696374344,10.0,2087.1,2086.4,2.0]
[1617696374646,10.0,2087.1,2086.3,5.72005]
[1617696375156,2.90695,2086.4,2086.3,2.90695]
[1617696375783,4.82645,2086.4,2086.3,2.90695]
[1617696376644,2.90695,2086.4,2086.3,2.90695]
[1617696377444,70.1809,2087.1,2086.3,2.90695]
[1617696377647,10.0,2087.1,2086.3,2.90695]
[1617696378745,10.0,2087.1,2086.4,2.0]
[1617696379147,10.0,2087.1,2087.0,5.14685]
[1617696380448,4.8805,2087.1,2087.0,5.14685]
[1617696380650,54.0203,2088.1,2087.0,5.14685]
[1617696380950,2.571,2088.9,2087.2,74.3385]
[1617696381147,2.571,2088.9,2088.1,5.48855]
[1617696381549,75.2323,2089.8,2088.1,5.48855]
[1617696381749,0.9589,2088.9,2088.1,5.48855]
[1617696381950,2.0,2089.7,2088.1,5.48855]
[1617696382351,43.2101,2090.1,2088.1,5.48855]
[1617696382555,13.4757,2089.7,2088.3,69.0249]
[1617696383051,13.4757,2089.7,2089.1,2.90695]
[1617696383353,13.4757,2089.7,2089.1,4.84715]
[1617696385154,2.90695,2089.2,2089.1,4.84715]
[1617696386670,13.4757,2089.7,2089.1,4.84715]
[1617696387353,13.4757,2089.7,2089.1,1.9402]
[1617696388657,13.4757,2089.7,2088.3,69.0249]
[1617696389156,13.4757,2089.7,2089.3,2.90695]
[1617696389368,13.4757,2089.7,2088.7,2.2313]
[1617696389836,16.2944,2089.7,2088.7,2.2313]
[1617696390504,16.2944,2089.7,2087.4,72.6789]
[1617696391467,13.4757,2089.7,2087.4,74.6789]
[1617696393166,13.4757,2089.7,2088.7,2.90695]
[1617696393370,13.4757,2089.7,2088.7,4.94005]
[1617696395267,2.90695,2088.8,2088.7,4.94005]
[1617696396769,13.4757,2089.7,2088.7,4.94005]
[1617696397171,2.90695,2089.5,2089.3,2.90695]
[1617696397372,2.90695,2089.5,2089.3,5.26545]
[1617696397773,13.2101,2090.1,2089.3,5.26545]
[1617696398006,13.2101,2090.1,2089.5,62.169]
[1617696398773,13.3222,2091.3,2089.5,62.169]
[1617696399173,13.3222,2091.3,2090.7,2.90695]
[1617696399402,13.5967,2091.9,2090.7,5.05965]
[1617696399572,13.5967,2091.9,2091.3,77.453]
[1617696400574,14.564,2091.9,2091.3,77.453]
[1617696400776,13.5967,2091.9,2091.3,77.453]
[1617696401350,13.5967,2091.9,2091.8,2.90695]
[1617696401501,13.5967,2091.9,2091.8,5.79215]
[1617696401676,13.5967,2091.9,2091.8,2.8852]
[1617696401875,14.5438,2091.9,2091.8,2.8852]
[1617696402077,13.5967,2091.9,2091.8,2.8852]
[1617696402700,13.5967,2091.9,2091.3,77.453]
[1617696403176,2.90695,2091.4,2091.3,80.35995]
[1617696404779,2.90695,2091.4,2091.3,5.46045]
[1617696404995,2.90695,2091.4,2089.9,56.4151]
[1617696405213,5.00655,2091.4,2089.9,56.4151]
[1617696405390,2.0996,2091.4,2090.3,2.90695]
[1617696405582,3.0433,2091.4,2090.3,2.90695]
[1617696405781,3.0433,2091.4,2089.9,56.4151]
[1617696405981,2.0996,2091.4,2089.9,56.4151]
[1617696406481,2.0996,2091.4,2087.9,2.0]
[1617696406681,63.9109,2091.1,2088.2,72.4819]
[1617696406881,63.9109,2091.1,2088.3,2.0]
[1617696407293,13.901,2091.0,2089.9,2.90695]
[1617696409285,13.901,2091.0,2090.5,2.90695]
[1617696409687,13.901,2091.0,2089.6,55.6276]
[1617696409991,13.901,2091.0,2089.5,2.9414]
[1617696410188,70.655,2091.0,2088.3,78.5404]
[1617696411293,70.655,2091.0,2089.6,2.90695]
[1617696413390,2.90695,2089.7,2089.6,2.90695]
[1617696414091,72.655,2091.0,2089.6,2.90695]
[1617696414291,17.9834,2091.0,2089.6,2.90695]
[1617696415292,15.9834,2091.0,2090.0,2.90695]
[1617696415492,13.901,2091.0,2090.0,2.90695]
[1617696415994,13.901,2091.0,2090.0,4.74385]
[1617696417096,67.2088,2091.8,2090.0,4.74385]
[1617696417300,67.2088,2091.8,2090.0,1.8369]
[1617696417502,2.0,2091.7,2090.0,1.8369]
[1617696417698,67.2088,2091.8,2090.0,1.8369]
[1617696418496,69.2088,2091.8,2090.0,1.8369]
[1617696418797,69.2088,2091.8,2089.4,4.8976]
[1617696418998,71.3494,2091.8,2089.4,4.8976]
[1617696419397,71.3494,2091.8,2090.3,2.90695]
[1617696419997,2.0,2091.8,2090.3,5.82775]
[1617696420197,0.9472,2092.0,2090.3,5.82775]
[1617696421298,0.9472,2092.0,2090.6,2.90695]
[1617696422098,2.0,2091.8,2090.6,2.90695]
[1617696423303,2.90695,2090.7,2090.6,2.90695]
[1617696428205,79.9655,2091.8,2090.6,2.90695]
[1617696428407,77.9655,2091.8,2090.6,5.81255]
[1617696428907,13.6686,2092.2,2090.6,5.81255]
[1617696429121,13.6686,2092.2,2090.7,62.2146]
[1617696429312,13.6686,2092.2,2091.8,2.90695]
[1617696429562,13.6686,2092.2,2091.8,4.80445]
[1617696429954,0.9458,2093.1,2091.8,4.80445]
[1617696430126,12.6475,2093.6,2091.9,74.5654]
[1617696430515,2.0,2093.5,2091.9,74.5654]
[1617696431513,2.0,2093.5,2092.6,4.92285]
[1617696432414,2.0,2093.5,2092.6,2.0159]
[1617696432614,30.0,2093.4,2091.9,74.5654]
[1617696432813,2.0,2093.3,2091.9,74.5654]
[1617696433014,2.9601,2093.3,2091.9,74.5654]
[1617696433413,2.90695,2092.0,2091.9,77.47235]
[1617696433614,2.9601,2093.3,2091.9,77.47235]
[1617696433816,2.9601,2093.3,2091.9,79.60415]
[1617696435416,2.9601,2093.3,2092.2,2.90695]
[1617696435616,0.9601,2093.3,2092.2,2.90695]
[1617696436117,12.6475,2093.6,2092.2,2.90695]
[1617696437522,12.6475,2093.6,2092.8,2.90695]
[1617696437720,12.6475,2093.6,2092.8,5.20125]
[1617696437921,12.6475,2093.6,2092.9,77.1151]
[1617696439623,12.6475,2093.6,2093.3,5.14485]
[1617696440530,13.6165,2093.6,2093.3,5.14485]
[1617696441577,2.90695,2093.4,2093.3,5.14485]
[1617696445429,2.90695,2093.4,2093.3,2.2379]
[1617696445729,2.90695,2093.4,2092.9,77.1151]
[1617696447432,12.6475,2093.6,2093.2,2.90695]
[1617696449432,2.90695,2093.3,2093.2,2.90695]
[1617696450574,3.85585,2093.3,2093.2,2.90695]
[1617696450737,2.90695,2093.3,2093.2,2.90695]
[1617696457443,2.90695,2093.3,2092.9,77.1151]
[1617696457645,2.90695,2093.0,2091.9,2.0]
[1617696457846,5.49695,2093.0,2091.7,53.7495]
[1617696458546,2.0,2092.9,2091.7,53.7495]
[1617696458746,5.49695,2093.0,2091.7,53.7495]
[1617696459646,2.90695,2091.8,2091.7,53.7495]
[1617696459847,5.56965,2091.8,2091.7,53.7495]
[1617696460264,5.56965,2091.8,2091.5,2.90695]
[1617696460551,5.56965,2091.8,2090.8,75.4327]
[1617696461750,2.6627,2091.8,2091.6,2.90695]
[1617696462462,2.6627,2091.8,2090.8,75.4327]
[1617696463157,1.8444,2092.3,2090.8,75.4327]
[1617696463671,1.8444,2092.3,2091.7,2.90695]
[1617696464153,1.8444,2092.3,2091.7,5.10755]
[1617696464460,0.9671,2092.7,2092.0,63.7184]
[1617696464653,13.7109,2093.2,2092.0,63.7184]
[1617696465554,13.7109,2093.2,2092.2,2.90695]
[1617696467753,13.7109,2093.2,2092.5,2.90695]
[1617696469656,2.90695,2092.6,2092.5,2.90695]
[1617696473355,3.85585,2092.6,2092.5,2.90695]
[1617696473555,2.90695,2092.6,2092.5,2.90695]
[1617696475558,5.18635,2092.6,2092.0,63.7184]
[1617696475764,2.90695,2092.1,2092.0,66.62535]
[1617696476159,5.02795,2092.1,2092.0,2.90695]
[1617696476559,5.02795,2092.1,2092.0,2.53245]
[1617696476959,5.02795,2092.1,2091.4,67.917]
[1617696477893,2.121,2092.1,2091.7,2.90695]
[1617696478261,2.2794,2092.6,2091.7,2.90695]
[1617696478961,2.0,2093.1,2091.7,2.90695]
[1617696479359,43.7109,2093.2,2091.7,2.90695]
[1617696479761,43.7109,2093.2,2091.4,67.917]
[1617696479762,43.7109,2093.2,2092.3,2.90695]
[1617696480164,43.7109,2093.2,2092.4,71.9303]
[1617696480562,13.7109,2093.2,2092.4,71.9303]
[1617696481764,2.90695,2092.9,2092.6,2.90695]
[1617696483163,2.90695,2092.9,2092.4,71.9303]
[1617696483863,13.7109,2093.2,2092.5,2.90695]
[1617696484865,14.6796,2093.2,2092.5,2.90695]
[1617696485266,13.7109,2093.2,2092.5,2.90695]
[1617696485866,13.7109,2093.2,2093.0,2.90695]
[1617696486475,14.6796,2093.2,2093.0,2.90695]
[1617696486669,13.7109,2093.2,2093.0,2.90695]
[1617696487771,2.90695,2093.1,2093.0,2.90695]
[1617696488575,2.90695,2093.1,2092.4,71.9303]
[1617696488886,16.90695,2093.1,2092.4,71.9303]
[1617696489070,17.86785,2093.1,2092.4,71.9303]
[1617696489770,14.9609,2093.1,2092.9,2.90695]
[1617696490085,14.0,2093.1,2092.9,2.90695]
[1617696491071,14.0,2093.1,2092.4,71.9303]
[1617696491874,3.87355,2092.5,2092.4,74.83725]
[1617696492073,3.87355,2092.5,2092.4,2.90695]
[1617696492373,2.90695,2092.5,2092.4,2.90695]
[1617696493173,3.85235,2092.5,2092.4,2.90695]
[1617696493775,2.90695,2092.5,2092.4,2.90695]
[1617696494376,2.90695,2092.5,2091.9,70.5392]
[1617696495881,2.90695,2092.5,2092.4,2.90695]
[1617696500312,14.0,2093.1,2092.4,2.90695]
[1617696500492,14.0,2093.1,2092.5,53.762]
[1617696501890,2.90695,2092.6,2092.5,53.762]
[1617696503191,3.85745,2092.6,2092.5,53.762]
[1617696503391,2.90695,2092.6,2092.5,53.762]
[1617696506394,5.81835,2092.6,2092.5,53.762]
[1617696506696,2.0,2092.5,2091.5,5.02611069]
[1617696506918,2.0,2092.5,2091.2,6.14324369]
[1617696506919,30.0,2092.4,2091.3,5.02670441]
[1617696507198,32.0,2092.4,2091.3,5.02670441]
[1617696507396,32.0,2092.4,2090.9,5.02787003]
[1617696507596,44.8001,2092.4,2090.9,5.02787003]
[1617696507796,44.8001,2092.4,2090.6,5.03064038]
[1617696508143,44.8001,2092.4,2090.5,5.03064523]
[1617696508498,44.8001,2092.4,2090.4,5.03081171]
[1617696508797,44.8001,2092.4,2090.2,81.43832396]
[1617696509196,42.8001,2092.4,2090.2,81.43832396]
[1617696509600,42.8001,2092.4,2090.3,5.03112768]
[1617696509802,42.8001,2092.4,2090.3,7.12282768]
[1617696510002,44.8001,2092.4,2090.9,4.94225]
[1617696510203,14.8001,2092.4,2090.9,4.94225]
[1617696510402,12.8001,2092.4,2090.9,4.94225]
[1617696510605,12.8001,2092.4,2091.1,5.04463627]
[1617696510808,12.8001,2092.4,2091.2,72.6938]
[1617696511606,30.0,2092.3,2091.2,72.6938]
[1617696512006,2.90695,2091.3,2091.2,72.6938]
[1617696514006,12.9415,2092.5,2091.2,75.60075]
[1617696514209,12.9415,2092.5,2091.2,78.50115]
[1617696514613,12.9415,2092.5,2091.2,83.5453587]
[1617696514907,12.9415,2092.5,2091.5,5.04395613]
[1617696515407,12.9415,2092.5,2092.1,71.9218]
[1617696515607,12.9415,2092.5,2092.1,74.8019]
[1617696515912,12.9415,2092.5,2092.3,2.90695]
[1617696516113,2.90695,2092.6,2092.3,2.90695]
[1617696516320,30.0,2094.1,2092.3,2.90695]
[1617696516634,12.9741,2093.8,2092.3,2.90695]
[1617696516825,12.9741,2093.8,2093.0,75.4873]
[1617696517031,12.9741,2093.8,2093.0,77.5688]
[1617696517239,12.9741,2093.8,2093.0,79.5688]
[1617696517918,13.6864,2094.4,2093.0,4.0815]
[1617696518104,13.6864,2094.4,2094.3,2.90695]
[1617696518280,13.6864,2094.4,2094.3,5.67335]
[1617696518643,13.6864,2094.4,2094.3,7.67335]
[1617696518931,43.8021,2096.4,2094.4,61.1207]
[1617696519312,43.8021,2096.4,2094.4,63.1207]
[1617696520013,13.8021,2096.4,2095.9,2.90695]
[1617696520546,13.8021,2096.4,2095.6,2.3874]
[1617696521860,13.8021,2096.4,2095.7,2.0]
[1617696522018,13.8021,2096.4,2096.3,2.90695]
[1617696522388,13.8021,2096.4,2096.3,5.12515]
[1617696523962,13.8021,2096.4,2096.3,7.12515]
[1617696524514,11.4936,2096.4,2096.3,7.12515]
[1617696524822,2.571,2098.3,2096.5,2.0]
[1617696525321,12.6031,2098.9,2096.5,2.0]
[1617696525714,12.6031,2098.9,2098.6,67.6206]
[1617696526144,12.6031,2098.9,2098.8,2.90695]
[1617696527073,5.098,2101.2,2098.8,2.90695]
[1617696527303,13.8202,2101.1,2099.8,77.7395]
[1617696528150,13.8202,2101.1,2099.7,2.8296]
[1617696528920,13.8202,2101.1,2099.7,3.7783]
[1617696529128,14.7666,2101.1,2099.8,2.0]
[1617696529718,13.8202,2101.1,2099.8,2.0]
[1617696529927,2.0,2105.1,2099.8,2.0]
[1617696530116,2.90695,2103.5,2101.0,2.90695]
[1617696530317,0.9447,2105.6,2101.0,4.98445]
[1617696530847,0.9447,2105.6,2103.1,66.6443]
[1617696531072,30.0,2105.2,2103.1,49.0196]
[1617696532133,30.0,2105.2,2104.7,2.90695]
[1617696532422,30.0,2105.2,2104.0,2.0359]
[1617696532666,30.0,2105.2,2104.5,58.0624]
[1617696532919,30.0,2105.2,2104.5,58.0524]
[1617696533120,30.0,2105.2,2104.5,30.2367]
[1617696533366,30.0,2105.2,2104.5,2.3137]
[1617696534163,30.0,2105.2,2105.1,2.90695]
[1617696534730,30.0,2105.2,2105.1,1.90695]
[1617696535089,28.0,2105.2,2105.1,1.90695]
[1617696535642,28.0,2105.2,2105.1,2.85695]
[1617696535837,28.0,2105.2,2105.1,1.90695]
[1617696536226,12.1426,2105.2,2105.1,1.90695]
[1617696536437,12.9826,2107.0,2105.1,1.90695]
[1617696537327,8.718,2111.3,2105.1,1.90695]
[1617696537527,2.571,2108.1,2105.1,2.86495]
[1617696537802,2.571,2108.1,2105.1,1.90695]
[1617696537803,13.0449,2108.0,2105.1,1.90695]
[1617696538228,13.0449,2108.0,2104.7,2.5381]
[1617696538229,13.0449,2108.0,2107.6,2.90695]
[1617696539017,2.571,2108.1,2107.6,2.18565]
[1617696539127,0.953,2110.6,2107.6,2.18565]
[1617696539329,12.7923,2111.2,2107.6,4.84925]
[1617696539735,12.7923,2111.2,2107.6,2.84925]
[1617696539943,12.7923,2111.2,2109.2,55.766]
[1617696540429,2.90695,2109.3,2109.2,59.62035]
[1617696540631,2.90695,2109.3,2109.2,3.85435]
[1617696540833,2.90695,2109.3,2107.0,1.83]
[1617696541190,2.90695,2109.3,2106.7,0.9545]
[1617696541349,2.90695,2109.3,2104.9,2.0]
[1617696541794,5.39065,2109.3,2104.9,2.0]
[1617696542170,5.39065,2109.3,2104.2,0.9573]
[1617696542363,2.4837,2109.3,2107.8,2.90695]
[1617696543012,2.9246,2110.2,2107.8,2.90695]
[1617696543133,2.9246,2110.2,2107.8,62.19585]
[1617696543533,12.7923,2111.2,2107.8,62.19585]
[1617696543534,14.7923,2111.2,2107.8,62.19585]
[1617696544134,12.7923,2111.2,2107.8,62.19585]
[1617696544411,12.7923,2111.2,2108.3,2.90695]
[1617696544633,12.7923,2111.2,2107.8,59.2889]
[1617696544634,2.0,2111.1,2107.8,59.2889]
[1617696545651,12.7923,2111.2,2107.8,59.2889]
[1617696546289,2.90695,2108.1,2107.5,2.90695]
[1617696546961,2.90695,2108.1,2104.0,0.9393]
[1617696547236,2.90695,2108.1,2094.2,2.0]
[1617696548035,2.90695,2108.1,2094.2,2.9411]
[1617696548237,2.5592,2108.5,2106.1,2.90695]
[1617696548443,2.5592,2108.5,2094.2,2.9411]
[1617696549637,65.4689,2107.6,2099.1,2.0]
[1617696549839,68.3585,2107.6,2099.1,2.0]
[1617696550556,68.3585,2107.6,2105.0,2.90695]
[1617696550557,2.8896,2107.6,2105.0,2.90695]
[1617696550739,3.8351,2107.6,2105.0,2.90695]
[1617696550947,3.8351,2107.6,2100.0,2.0]
[1617696551406,12.6036,2107.5,2092.4,4.64594012]
[1617696551542,12.6036,2107.5,2092.9,2.0]
[1617696551543,14.6036,2107.5,2092.9,2.0]
[1617696551945,13.2215,2107.4,2092.9,2.0]
[1617696552158,2.0,2107.3,2092.9,2.0]
[1617696552415,2.0,2107.3,2103.2,2.90695]
[1617696552641,2.0,2107.3,2099.0,1.8996]
[1617696553449,58.0452,2104.6,2099.0,1.8996]
[1617696553868,60.0776,2104.6,2099.0,0.9612]
[1617696554171,15.3935,2104.5,2099.0,0.9612]
[1617696554520,5.13085,2100.9,2100.6,2.90695]
[1617696555116,5.13085,2100.9,2092.9,2.0]
[1617696555456,5.13085,2100.9,2089.7,7.22465544]
[1617696555457,5.13085,2100.9,2089.8,2.0]
[1617696556531,2.90695,2098.9,2098.8,2.90695]
[1617696556715,5.25375,2098.9,2098.8,2.90695]
[1617696556850,5.25375,2098.9,2094.0,0.9229]
[1617696557242,5.25375,2098.9,2089.8,2.0]
[1617696557970,5.25375,2098.9,2090.4,0.02]
[1617696557971,6.19885,2098.9,2090.4,0.02]
[1617696558153,6.19885,2098.9,2089.8,2.9698]
[1617696558401,3.2919,2098.9,2096.1,2.90695]
[1617696558559,2.0,2098.8,2090.4,7.638]
[1617696558759,2.0,2098.8,2090.5,2.0]
[1617696558953,2.0,2098.6,2090.5,2.0]
[1617696559651,2.0,2098.6,2089.7,2.571]
[1617696559863,2.0,2098.6,2090.3,0.02]
[1617696560070,66.6679,2095.6,2089.7,2.571]
[1617696560263,69.6631,2095.6,2089.7,2.571]
[1617696560455,2.90695,2093.1,2092.9,2.90695]
[1617696560652,2.0931,2093.1,2092.9,2.90695]
[1617696560876,2.0931,2093.1,2090.4,0.02]
[1617696561064,2.0931,2093.1,2089.7,2.571]
[1617696561860,2.0931,2093.1,2090.2,0.02]
[1617696562253,2.0931,2093.1,2089.7,2.571]
[1617696562451,2.0,2093.0,2090.9,2.90695]
[1617696562653,2.0931,2093.1,2090.9,2.90695]
[1617696562852,2.0931,2093.1,2090.4,0.02]
[1617696563270,56.6883,2091.6,2090.4,0.02]
[1617696563555,56.6883,2091.6,2089.2,0.9482]
[1617696563556,58.7005,2091.6,2089.2,0.9482]
[1617696564354,2.90695,2089.3,2089.2,0.9482]
[1617696564552,5.62515,2089.3,2088.4,2.90695]
[1617696564769,5.62515,2089.3,2087.7,0.96]
[1617696565568,5.62515,2089.3,2088.1,0.02]
[1617696565780,2.7182,2089.3,2088.1,0.02]
[1617696566271,0.9511,2089.8,2088.1,0.02]
[1617696566638,2.8311,2089.7,2088.1,0.02]
[1617696566766,2.8311,2089.7,2087.7,0.96]
[1617696567658,2.8311,2089.7,2083.4,7.669]
[1617696568459,2.8311,2089.7,2086.6,2.90695]
[1617696569560,79.8222,2089.8,2086.6,3.86945]
[1617696569826,79.8222,2089.8,2086.6,2.90695]
[1617696569962,78.8673,2089.8,2086.6,2.90695]
[1617696570359,78.8673,2089.8,2089.0,2.90695]
[1617696570659,78.8673,2089.8,2089.0,5.80335]
[1617696570902,78.8673,2089.8,2089.0,5.45925]
[1617696571787,78.8673,2089.8,2089.0,2.56285]
[1617696572059,78.8673,2089.8,2087.7,2.868]
[1617696572561,78.8673,2089.8,2088.9,1.8496]
[1617696573361,13.5266,2092.9,2088.9,1.8496]
[1617696573830,14.4799,2092.9,2088.9,1.8496]
[1617696573998,13.5266,2092.9,2088.9,2.951]
[1617696574572,13.5266,2092.9,2091.3,2.90695]
[1617696576070,0.9607,2093.6,2091.3,2.90695]
[1617696576470,0.0001,2093.6,2093.5,2.90695]
[1617696576662,0.959,2095.3,2093.5,5.53645]
[1617696577633,0.9467,2097.8,2093.5,5.53645]
[1617696578476,0.9467,2097.8,2094.9,2.90695]
[1617696578671,0.9467,2097.8,2093.5,2.6295]
[1617696578863,0.9467,2097.8,2091.7,0.954]
[1617696579064,0.9467,2097.8,2090.9,1.9265]
[1617696579764,0.9467,2097.8,2089.0,2.9425]
[1617696580466,0.9467,2097.8,2095.8,2.90695]
[1617696580664,12.9531,2097.7,2089.0,2.9425]
[1617696581164,0.9467,2097.8,2089.0,2.9425]
[1617696581565,13.121,2097.7,2089.0,2.9425]
[1617696582191,2.5508,2100.1,2089.0,2.9425]
[1617696582365,2.272,2099.2,2089.0,2.9425]
[1617696582565,2.90695,2097.1,2096.7,2.90695]
[1617696583075,2.0,2104.3,2096.7,4.96265]
[1617696583366,13.2079,2104.2,2096.7,4.96265]
[1617696583577,2.0,2104.1,2096.7,4.96265]
[1617696583770,13.2079,2104.2,2096.7,5.92705]
[1617696584168,0.02,2103.6,2096.7,5.92705]
[1617696584598,2.90695,2098.6,2098.5,2.90695]
[1617696584730,0.02,2103.6,2096.7,0.9644]
[1617696585273,13.2079,2104.2,2096.7,0.9644]
[1617696586073,2.0,2104.3,2096.4,1.9231]
[1617696586583,2.0,2104.3,2099.5,2.2199]
[1617696587086,13.4674,2105.1,2099.5,2.2199]
[1617696587228,0.955,2105.4,2099.5,2.2199]
[1617696587591,12.6229,2104.5,2099.5,2.2199]
[1617696587773,12.6229,2104.5,2098.7,2.9573]
[1617696588636,2.90695,2101.8,2101.7,2.90695]
[1617696588847,2.90695,2101.8,2101.7,5.49025]